[Event "EYCC Girls-U16 2019"]
[Site "Bratislava"]
[Date "2019.08.08"]
[Round "7.20"]
[White "Zarebska, Lena"]
[Black "Radikovic, Anamarija"]
[Result "1-0"]
[ECO "B90"]
[WhiteElo "1773"]
[BlackElo "2021"]
[Annotator "NA"]
[PlyCount "120"]
[EventDate "2019.08.02"]
[EventType "swiss"]
[EventCountry "SVK"]
[SourceTitle "playchess.com"]
[Source "ChessBase"]
[SourceQuality "1"]
[TimeControl "40/5400+30:1800+30"]

1. e4 {[%emt 0:00:00]} c5 {[%emt 0:00:00]} 2. Nf3 {[%emt 0:00:00]} d6 {[%emt 0:00:00]} 3. d4 {[%emt 0:00:00]} cxd4 {[%emt 0:00:00]} 4. Nxd4 {[%emt 0:00:00]} Nf6 {[%emt 0:00:00]} 5. Nc3 {[%emt 0:00:01]} a6 {[%emt 0:00:00]} 6. Bc4 {[%emt 0:00:55]} e6 {[%emt 0:00:00]} 7. O-O {[%emt 0:01:26]} Qc7 {[%emt 0:01:24]} 8. Bb3 {[%emt 0:00:44]} Nbd7 {[%emt 0:00:08]} 9. a4 {[%emt 0:04:49]} Nc5 {[%emt 0:00:09]} 10. Qe2 {[%emt 0:06:19]} Nxb3 {[%emt 0:01:07]} 11. cxb3 {[%emt 0:01:12]} Be7 {[%emt 0:01:38]} 12. Be3 {[%emt 0:01:31]} O-O {[%emt 0:02:56]} 13. Rfc1 {[%emt 0:00:17]} Qd8 {[%emt 0:06:08]} 14. a5 {[%emt 0:06:49]} d5 {[%emt 0:07:34]} 15. e5 {[%emt 0:01:57]} Nd7 {[%emt 0:00:05]} 16. f4 {[%emt 0:00:12]} Bb4 {[%emt 0:01:24]} 17. Bf2 {[%emt 0:02:58]} Re8 {[%emt 0:04:14]} 18. Ra4 {[%emt 0:08:09]} Bxa5 {[%emt 0:07:28]} 19. b4 {[%emt 0:01:11]} Bb6 {[%emt 0:00:45]} 20. Ncb5 {[%emt 0:01:09]} Rb8 {[%emt 0:03:20]} 21. Nd6 {[%emt 0:00:14]} Rf8 {[%emt 0:05:11]} 22. Qg4 {[%emt 0:04:27]} f5 {[%emt 0:14:12]} 23. Qh5 {[%emt 0:00:51]} g6 {[%emt 0:00:40]} 24. Qh6 {[%emt 0:00:58]} Qe7 {[%emt 0:00:22]} 25. Ra3 {[%emt 0:03:06]} Rd8 {[%emt 0:03:07]} 26. Rac3 {[%emt 0:00:34]} Nf6 {[%emt 0:08:37]} 27. Nxc8 {[%emt 0:02:33]} Rbxc8 {[%emt 0:00:06]} 28. exf6 {[%emt 0:03:51]} Rxc3 {[%emt 0:01:06]} 29. bxc3 {[%emt 0:01:44]} Qxf6 {[%emt 0:00:06]} 30. Qh4 {[%emt 0:02:50]} Qf7 {[%emt 0:05:09]} 31. Kf1 {[%emt 0:04:12]} Rc8 {[%emt 0:01:03]} 32. Nf3 {[%emt 0:00:58]} Bc7 {[%emt 0:00:07]} 33. Bd4 {[%emt 0:00:28]} Qd7 {[%emt 0:04:01]} 34. Qf6 {[%emt 0:00:31]} Bxf4 {[%emt 0:01:00]} 35. Qh8+ {[%emt 0:00:26]} Kf7 {[%emt 0:00:04]} 36. Qxh7+ {[%emt 0:01:06]} Ke8 {[%emt 0:00:07]} 37. Qxg6+ {[%emt 0:00:51]} Kf8 {[%emt 0:02:34]} 38. Qf6+ {[%emt 0:00:56]} Ke8 {[%emt 0:00:17]} 39. Re1 {[%emt 0:00:39]} Rc6 {[%emt 0:00:54]} 40. Ne5 {[%emt 0:00:00]} Bxe5 {[%emt 0:00:00]} 41. Bxe5 {[%emt 0:01:43]} Qf7 {[%emt 0:01:50]} 42. Qxf7+ {[%emt 0:00:53]} Kxf7 {[%emt 0:00:05]} 43. Re3 {[%emt 0:00:24]} b6 {[%emt 0:00:52]} 44. Rg3 {[%emt 0:00:18]} a5 {[%emt 0:00:12]} 45. bxa5 {[%emt 0:00:51]} bxa5 {[%emt 0:00:06]} 46. Rg7+ {[%emt 0:00:08]} Kf8 {[%emt 0:00:08]} 47. Ra7 {[%emt 0:00:04]} Rc4 {[%emt 0:00:38]} 48. Bd4 {[%emt 0:00:41]} a4 {[%emt 0:00:11]} 49. g3 {[%emt 0:00:23]} Kg8 {[%emt 0:00:55]} 50. h4 {[%emt 0:00:05]} e5 {[%emt 0:00:39]} 51. Bxe5 {[%emt 0:00:05]} Re4 {[%emt 0:00:04]} 52. Bd4 {[%emt 0:00:32]} Rg4 {[%emt 0:00:14]} 53. Kf2 {[%emt 0:00:09]} f4 {[%emt 0:00:27]} 54. gxf4 {[%emt 0:00:35]} Rxh4 {[%emt 0:00:06]} 55. Kg3 {[%emt 0:00:12]} Rh7 {[%emt 0:00:49]} 56. Rxh7 {[%emt 0:01:44]} Kxh7 {[%emt 0:00:05]} 57. Bc5 {[%emt 0:00:15]} Kg6 {[%emt 0:00:10]} 58. Kg4 {[%emt 0:00:51]} Kf6 {[%emt 0:00:24]} 59. f5 {[%emt 0:00:15]} Kf7 {[%emt 0:01:04]} 60. Kg5 {[%emt 0:00:05]} Ke8 {[%emt 0:01:20]} 1-0

[Event "EYCC Girls-U16 2019"]
[Site "Bratislava"]
[Date "2019.08.08"]
[Round "7.21"]
[White "Vanduyfhuys, Daria"]
[Black "Moerwald, Magdalena"]
[Result "1-0"]
[ECO "E98"]
[WhiteElo "2114"]
[BlackElo "1869"]
[Annotator "NA"]
[PlyCount "127"]
[EventDate "2019.08.02"]
[EventType "swiss"]
[EventCountry "SVK"]
[SourceTitle "playchess.com"]
[Source "ChessBase"]
[SourceQuality "1"]
[TimeControl "40/5400+30:1800+30"]

1. d4 {[%emt 0:00:00]} Nf6 {[%emt 0:00:00]} 2. c4 {[%emt 0:00:00]} g6 {[%emt 0:00:00]} 3. Nc3 {[%emt 0:00:00]} Bg7 {[%emt 0:00:00]} 4. e4 {[%emt 0:00:00]} d6 {[%emt 0:00:02]} 5. Nf3 {[%emt 0:00:15]} O-O {[%emt 0:00:13]} 6. Be2 {[%emt 0:00:06]} e5 {[%emt 0:00:16]} 7. O-O {[%emt 0:00:10]} Nc6 {[%emt 0:00:10]} 8. d5 {[%emt 0:00:10]} Ne7 {[%emt 0:00:12]} 9. Ne1 {[%emt 0:02:03]} Nd7 {[%emt 0:00:42]} 10. Nd3 {[%emt 0:00:17]} a6 {[%emt 0:03:54]} 11. Bd2 {[%emt 0:01:31]} f5 {[%emt 0:01:04]} 12. f3 {[%emt 0:00:12]} f4 {[%emt 0:01:02]} 13. b4 {[%emt 0:02:18]} g5 {[%emt 0:02:57]} 14. c5 {[%emt 0:01:42]} Qe8 {[%emt 0:03:48]} 15. cxd6 {[%emt 0:07:13]} cxd6 {[%emt 0:00:25]} 16. Rc1 {[%emt 0:00:12]} Qh5 {[%emt 0:09:36]} 17. Na4 {[%emt 0:03:38]} Rf6 {[%emt 0:07:21]} 18. Nf2 {[%emt 0:00:11]} b5 {[%emt 0:05:37]} 19. Nb2 {[%emt 0:02:27]} Rg6 {[%emt 0:10:36]} 20. Rc7 {[%emt 0:04:43]} Bf8 {[%emt 0:05:42]} 21. a4 {[%emt 0:03:14]} Nf6 {[%emt 0:04:15]} 22. Ng4 {[%emt 0:00:23]} Ne8 {[%emt 0:03:38]} 23. Rc1 {[%emt 0:01:18]} Rg7 {[%emt 0:03:18]} 24. axb5 {[%emt 0:02:16]} Qg6 {[%emt 0:01:52]} 25. h3 {[%emt 0:03:29]} Bxg4 {[%emt 0:03:16]} 26. hxg4 {[%emt 0:10:36]} h5 {[%emt 0:01:12]} 27. bxa6 {[%emt 0:06:52]} hxg4 {[%emt 0:01:00]} 28. Kf2 {[%emt 0:03:45]} Rh7 {[%emt 0:02:45]} 29. Rg1 {[%emt 0:10:18]} Rh2 {[%emt 0:05:30]} 30. Ke1 {[%emt 0:01:47]} Qh7 {[%emt 0:03:11]} 31. Bc3 {[%emt 0:00:41]} Qh4+ {[%emt 0:02:38]} 32. Kd2 {[%emt 0:00:15]} Qf2 {[%emt 0:02:15]} 33. Qe1 {[%emt 0:02:20]} Qe3+ {[%emt 0:01:49]} 34. Kd1 {[%emt 0:00:47]} Ng6 {[%emt 0:03:15]} 35. Nc4 {[%emt 0:06:56]} Qa7 {[%emt 0:01:15]} 36. b5 {[%emt 0:01:13]} Nh4 {[%emt 0:03:00]} 37. Qf1 {[%emt 0:02:21]} Qc5 {[%emt 0:02:11]} 38. Nb2 {[%emt 0:06:30]} Qe3 {[%emt 0:03:02]} 39. Na4 {[%emt 0:01:42]} Be7 {[%emt 0:02:30]} 40. Bd2 {[%emt 0:00:00]} Qb3+ {[%emt 0:00:00]} 41. Ke1 {[%emt 0:06:02]} Qxa4 {[%emt 0:05:54]} 42. b6 {[%emt 0:00:10]} gxf3 {[%emt 0:04:14]} 43. gxf3 {[%emt 0:00:21]} Rxe2+ {[%emt 0:01:13]} 44. Qxe2 {[%emt 0:00:37]} Qd4 {[%emt 0:03:46]} 45. Rf1 {[%emt 0:05:00]} Qxb6 {[%emt 0:01:29]} 46. Rc6 {[%emt 0:00:33]} Qa7 {[%emt 0:03:31]} 47. Qf2 {[%emt 0:03:24]} Nc7 {[%emt 0:07:16]} 48. Qxa7 {[%emt 0:01:06]} Rxa7 {[%emt 0:00:08]} 49. Ke2 {[%emt 0:00:12]} Nb5 {[%emt 0:02:22]} 50. Kd3 {[%emt 0:10:30]} Nd4 {[%emt 0:03:29]} 51. Rb6 {[%emt 0:00:22]} Nhxf3 {[%emt 0:01:43]} 52. Ra1 {[%emt 0:00:23]} Kf7 {[%emt 0:01:25]} 53. Rb7 {[%emt 0:00:13]} Ra8 {[%emt 0:00:33]} 54. a7 {[%emt 0:00:07]} g4 {[%emt 0:00:54]} 55. Rb8 {[%emt 0:00:07]} Rxa7 {[%emt 0:00:15]} 56. Rxa7 {[%emt 0:00:04]} Kf6 {[%emt 0:01:10]} 57. Rbb7 {[%emt 0:01:05]} Bd8 {[%emt 0:00:42]} 58. Rd7 {[%emt 0:01:20]} Nb3 {[%emt 0:01:38]} 59. Bb4 {[%emt 0:01:24]} Ba5 {[%emt 0:00:44]} 60. Rxd6+ {[%emt 0:01:05]} Kg5 {[%emt 0:00:06]} 61. Bxa5 {[%emt 0:00:13]} Nxa5 {[%emt 0:00:12]} 62. Rxa5 {[%emt 0:00:09]} g3 {[%emt 0:00:42]} 63. Ra1 {[%emt 0:02:48]} g2 {[%emt 0:00:14]} 64. Rd8 {[%emt 0:00:06]} 1-0

[Event "EYCC Girls-U16 2019"]
[Site "Bratislava"]
[Date "2019.08.08"]
[Round "7.22"]
[White "Muedder, Melanie"]
[Black "Ciolacu, Alessia-Mihaela"]
[Result "0-1"]
[ECO "B15"]
[WhiteElo "1905"]
[BlackElo "2199"]
[Annotator "NA"]
[PlyCount "74"]
[EventDate "2019.08.02"]
[EventType "swiss"]
[EventCountry "SVK"]
[SourceTitle "playchess.com"]
[Source "ChessBase"]
[SourceQuality "1"]
[TimeControl "40/5400+30:1800+30"]

1. e4 {[%emt 0:00:00]} c6 {[%emt 0:00:00]} 2. d4 {[%emt 0:00:05]} d5 {[%emt 0:00:00]} 3. Nc3 {[%emt 0:00:13]} dxe4 {[%emt 0:00:00]} 4. Nxe4 {[%emt 0:00:11]} Nf6 {[%emt 0:00:00]} 5. Nxf6+ {[%emt 0:00:44]} exf6 {[%emt 0:00:09]} 6. Bc4 {[%emt 0:04:13]} Be7 {[%emt 0:00:29]} 7. Ne2 {[%emt 0:00:40]} O-O {[%emt 0:00:40]} 8. O-O {[%emt 0:01:56]} Nd7 {[%emt 0:01:03]} 9. Ng3 {[%emt 0:05:35]} Nb6 {[%emt 0:02:28]} 10. Bd3 {[%emt 0:00:35]} g6 {[%emt 0:03:05]} 11. c3 {[%emt 0:01:56]} Re8 {[%emt 0:03:54]} 12. Qf3 {[%emt 0:04:22]} Be6 {[%emt 0:08:14]} 13. b3 {[%emt 0:08:17]} Nd5 {[%emt 0:09:52]} 14. Bb2 {[%emt 0:11:14]} f5 {[%emt 0:09:39]} 15. Rad1 {[%emt 0:05:10]} f4 {[%emt 0:13:49]} 16. Ne2 {[%emt 0:09:16]} Qc8 {[%emt 0:05:52]} 17. h3 {[%emt 0:01:44]} g5 {[%emt 0:01:14]} 18. Bb1 {[%emt 0:09:18]} Bf5 {[%emt 0:08:16]} 19. c4 {[%emt 0:04:35]} Nf6 {[%emt 0:12:48]} 20. d5 {[%emt 0:08:07]} cxd5 {[%emt 0:00:56]} 21. cxd5 {[%emt 0:00:42]} Bxb1 {[%emt 0:01:01]} 22. Rxb1 {[%emt 0:01:51]} Qf5 {[%emt 0:00:18]} 23. Nc3 {[%emt 0:12:49]} Rad8 {[%emt 0:02:21]} 24. Rfd1 {[%emt 0:01:26]} Bd6 {[%emt 0:05:42]} 25. Rbc1 {[%emt 0:02:34]} a6 {[%emt 0:01:48]} 26. a3 {[%emt 0:03:17]} b5 {[%emt 0:01:58]} 27. b4 {[%emt 0:00:22]} Be5 {[%emt 0:00:33]} 28. d6 {[%emt 0:01:05]} Re6 {[%emt 0:01:03]} 29. d7 {[%emt 0:01:25]} Rxd7 {[%emt 0:00:13]} 30. Rxd7 {[%emt 0:00:32]} Nxd7 {[%emt 0:00:01]} 31. Rd1 {[%emt 0:00:36]} Nf6 {[%emt 0:01:08]} 32. Qa8+ {[%emt 0:00:32]} Kg7 {[%emt 0:00:12]} 33. Qf3 {[%emt 0:00:33]} Qc2 {[%emt 0:01:51]} 34. Ba1 {[%emt 0:00:17]} h5 {[%emt 0:01:49]} 35. Nd5 {[%emt 0:00:41]} g4 {[%emt 0:01:04]} 36. hxg4 {[%emt 0:00:26]} hxg4 {[%emt 0:00:01]} 37. Ne3 {[%emt 0:00:25]} fxe3 {[%emt 0:00:14]} 0-1

[Event "EYCC Girls-U16 2019"]
[Site "Bratislava"]
[Date "2019.08.08"]
[Round "7.23"]
[White "Duran, Esma Doga"]
[Black "Maciulaityte, Barbora"]
[Result "1-0"]
[ECO "A50"]
[WhiteElo "2096"]
[BlackElo "1709"]
[Annotator "NA"]
[PlyCount "73"]
[EventDate "2019.08.02"]
[EventType "swiss"]
[EventCountry "SVK"]
[SourceTitle "playchess.com"]
[Source "ChessBase"]
[SourceQuality "1"]
[TimeControl "40/5400+30:1800+30"]

1. d4 {[%emt 0:00:00]} Nf6 {[%emt 0:00:00]} 2. c4 {[%emt 0:00:00]} g6 {[%emt 0:00:00]} 3. h4 {[%emt 0:00:00]} Bg7 {[%emt 0:04:37]} 4. Nc3 {[%emt 0:01:12]} d5 {[%emt 0:00:44]} 5. h5 {[%emt 0:01:14]} c6 {[%emt 0:06:37]} 6. h6 {[%emt 0:06:05]} Bf8 {[%emt 0:00:04]} 7. Bg5 {[%emt 0:01:15]} Nbd7 {[%emt 0:01:38]} 8. cxd5 {[%emt 0:20:31]} Nxd5 {[%emt 0:07:29]} 9. e4 {[%emt 0:01:41]} Nxc3 {[%emt 0:00:19]} 10. bxc3 {[%emt 0:00:01]} Qa5 {[%emt 0:01:00]} 11. Qd2 {[%emt 0:00:53]} Nb6 {[%emt 0:12:34]} 12. Rb1 {[%emt 0:15:52]} Bd7 {[%emt 0:14:54]} 13. c4 {[%emt 0:18:39]} Qxd2+ {[%emt 0:01:08]} 14. Bxd2 {[%emt 0:00:50]} Bc8 {[%emt 0:13:11]} 15. Nf3 {[%emt 0:13:53]} e6 {[%emt 0:05:29]} 16. Bc3 {[%emt 0:01:27]} Rg8 {[%emt 0:02:22]} 17. d5 {[%emt 0:03:07]} cxd5 {[%emt 0:05:14]} 18. Ng5 {[%emt 0:00:31]} Nd7 {[%emt 0:06:02]} 19. Nxh7 {[%emt 0:00:43]} e5 {[%emt 0:01:14]} 20. Bxe5 {[%emt 0:00:40]} Bxh6 {[%emt 0:06:47]} 21. Rxh6 {[%emt 0:00:23]} Nxe5 {[%emt 0:00:11]} 22. Nf6+ {[%emt 0:00:13]} Kf8 {[%emt 0:00:01]} 23. Nxg8 {[%emt 0:00:14]} Kxg8 {[%emt 0:00:02]} 24. cxd5 {[%emt 0:00:24]} b6 {[%emt 0:00:57]} 25. Rc1 {[%emt 0:01:02]} Bd7 {[%emt 0:02:16]} 26. Rc7 {[%emt 0:00:15]} Ba4 {[%emt 0:01:33]} 27. f4 {[%emt 0:00:24]} Ng4 {[%emt 0:00:20]} 28. Rh4 {[%emt 0:01:08]} Nf6 {[%emt 0:00:24]} 29. d6 {[%emt 0:05:45]} Ne8 {[%emt 0:02:35]} 30. Rc4 {[%emt 0:00:15]} Bd7 {[%emt 0:00:39]} 31. e5 {[%emt 0:00:26]} Rd8 {[%emt 0:01:12]} 32. g3 {[%emt 0:01:20]} Be6 {[%emt 0:01:58]} 33. Rc2 {[%emt 0:00:43]} a5 {[%emt 0:02:22]} 34. Bh3 {[%emt 0:00:21]} Bxh3 {[%emt 0:00:30]} 35. Rxh3 {[%emt 0:00:01]} Kg7 {[%emt 0:00:01]} 36. g4 {[%emt 0:00:52]} Kg8 {[%emt 0:00:57]} 37. Rch2 {[%emt 0:00:29]} 1-0

[Event "EYCC Girls-U16 2019"]
[Site "Bratislava"]
[Date "2019.08.08"]
[Round "7.24"]
[White "Sleurs, Juliette"]
[Black "Ilyina, Lada"]
[Result "1/2-1/2"]
[ECO "C00"]
[WhiteElo "1834"]
[BlackElo "2048"]
[Annotator "NA"]
[PlyCount "72"]
[EventDate "2019.08.02"]
[EventType "swiss"]
[EventCountry "SVK"]
[SourceTitle "playchess.com"]
[Source "ChessBase"]
[SourceQuality "1"]
[TimeControl "40/5400+30:1800+30"]

1. e4 {[%emt 0:00:00]} e6 {[%emt 0:00:00]} 2. d3 {[%emt 0:00:00]} d5 {[%emt 0:00:00]} 3. Nd2 {[%emt 0:00:00]} Nf6 {[%emt 0:00:05]} 4. Ngf3 {[%emt 0:00:00]} c5 {[%emt 0:00:08]} 5. g3 {[%emt 0:00:01]} Nc6 {[%emt 0:00:22]} 6. Bg2 {[%emt 0:00:10]} Be7 {[%emt 0:00:12]} 7. O-O {[%emt 0:00:21]} b6 {[%emt 0:00:13]} 8. Re1 {[%emt 0:00:55]} Bb7 {[%emt 0:00:28]} 9. e5 {[%emt 0:02:11]} Nd7 {[%emt 0:00:05]} 10. c4 {[%emt 0:00:29]} d4 {[%emt 0:02:14]} 11. Ne4 {[%emt 0:19:57]} Ncxe5 {[%emt 0:05:09]} 12. Nxe5 {[%emt 0:00:55]} Nxe5 {[%emt 0:00:08]} 13. Nxc5 {[%emt 0:03:54]} Bxg2 {[%emt 0:01:57]} 14. Kxg2 {[%emt 0:00:30]} bxc5 {[%emt 0:00:10]} 15. Rxe5 {[%emt 0:00:21]} Qc7 {[%emt 0:02:56]} 16. Re4 {[%emt 0:12:46]} O-O {[%emt 0:00:35]} 17. b3 {[%emt 0:03:12]} Qc6 {[%emt 0:05:58]} 18. Qf3 {[%emt 0:01:50]} a5 {[%emt 0:00:54]} 19. Rb1 {[%emt 0:11:18]} Rfd8 {[%emt 0:07:07]} 20. Re2 {[%emt 0:06:33]} Qxf3+ {[%emt 0:04:44]} 21. Kxf3 {[%emt 0:00:06]} Rdb8 {[%emt 0:03:18]} 22. Reb2 {[%emt 0:05:28]} Bd6 {[%emt 0:02:27]} 23. Bd2 {[%emt 0:01:53]} f5 {[%emt 0:01:36]} 24. a3 {[%emt 0:01:41]} Kf7 {[%emt 0:01:47]} 25. b4 {[%emt 0:06:58]} axb4 {[%emt 0:01:07]} 26. axb4 {[%emt 0:00:15]} cxb4 {[%emt 0:00:21]} 27. Bxb4 {[%emt 0:00:30]} Bxb4 {[%emt 0:00:12]} 28. Rxb4 {[%emt 0:00:05]} Rxb4 {[%emt 0:00:19]} 29. Rxb4 {[%emt 0:00:05]} Ra3 {[%emt 0:00:43]} 30. Rb7+ {[%emt 0:01:43]} Kf6 {[%emt 0:01:01]} 31. Rd7 {[%emt 0:03:07]} e5 {[%emt 0:01:24]} 32. Ke2 {[%emt 0:00:36]} Ra2+ {[%emt 0:00:20]} 33. Ke1 {[%emt 0:00:10]} h6 {[%emt 0:02:07]} 34. h4 {[%emt 0:02:37]} Ra1+ {[%emt 0:02:19]} 35. Ke2 {[%emt 0:00:19]} Ra2+ {[%emt 0:00:26]} 36. Ke1 {[%emt 0:00:07]} Ra1+ {[%emt 0:00:04]} 1/2-1/2

[Event "EYCC Girls-U16 2019"]
[Site "Bratislava"]
[Date "2019.08.09"]
[Round "8.1"]
[White "Mkrtchyan, Mariam"]
[Black "Waszczuk, Patrycja"]
[Result "0-1"]
[ECO "A45"]
[WhiteElo "1981"]
[BlackElo "2119"]
[Annotator "NA"]
[PlyCount "62"]
[EventDate "2019.08.02"]
[EventType "swiss"]
[EventCountry "SVK"]
[SourceTitle "playchess.com"]
[Source "ChessBase"]
[SourceQuality "1"]
[TimeControl "40/5400+30:1800+30"]

1. d4 {[%emt 0:00:00]} Nf6 {[%emt 0:00:00]} 2. Bg5 {[%emt 0:01:56]} e6 {[%emt 0:00:00]} 3. e4 {[%emt 0:00:03]} h6 {[%emt 0:00:00]} 4. Bxf6 {[%emt 0:00:02]} Qxf6 {[%emt 0:00:00]} 5. c3 {[%emt 0:00:03]} d6 {[%emt 0:01:21]} 6. Bd3 {[%emt 0:01:15]} Nd7 {[%emt 0:03:29]} 7. Ne2 {[%emt 0:00:24]} g6 {[%emt 0:01:53]} 8. O-O {[%emt 0:00:16]} Bg7 {[%emt 0:00:18]} 9. f4 {[%emt 0:03:01]} O-O {[%emt 0:03:55]} 10. Nd2 {[%emt 0:00:18]} Qd8 {[%emt 0:00:12]} 11. e5 {[%emt 0:09:55]} dxe5 {[%emt 0:00:45]} 12. dxe5 {[%emt 0:04:43]} Nxe5 {[%emt 0:00:33]} 13. Be4 {[%emt 0:00:13]} Ng4 {[%emt 0:02:44]} 14. Nc4 {[%emt 0:04:08]} Qe7 {[%emt 0:07:02]} 15. b4 {[%emt 0:05:41]} a5 {[%emt 0:02:05]} 16. a3 {[%emt 0:04:45]} e5 {[%emt 0:00:19]} 17. h3 {[%emt 0:07:37]} exf4 {[%emt 0:02:24]} 18. hxg4 {[%emt 0:07:55]} axb4 {[%emt 0:15:43]} 19. Bd5 {[%emt 0:17:34]} Bxg4 {[%emt 0:11:42]} 20. Rf2 {[%emt 0:05:45]} Rfd8 {[%emt 0:10:25]} 21. Ra2 {[%emt 0:05:54]} c6 {[%emt 0:06:19]} 22. Nb6 {[%emt 0:03:04]} Rab8 {[%emt 0:05:13]} 23. axb4 {[%emt 0:10:00]} cxd5 {[%emt 0:01:59]} 24. Nxd5 {[%emt 0:00:06]} Qg5 {[%emt 0:00:34]} 25. Rd2 {[%emt 0:00:54]} Be5 {[%emt 0:01:01]} 26. c4 {[%emt 0:02:58]} f3 {[%emt 0:06:12]} 27. Nd4 {[%emt 0:00:04]} fxg2 {[%emt 0:01:40]} 28. Qb1 {[%emt 0:02:00]} Qh4 {[%emt 0:08:51]} 29. Rxg2 {[%emt 0:00:16]} Re8 {[%emt 0:01:06]} 30. Nc2 {[%emt 0:02:35]} Bf3 {[%emt 0:01:30]} 31. Rgf2 {[%emt 0:00:32]} Qh1# {[%emt 0:00:06]} 0-1

[Event "EYCC Girls-U16 2019"]
[Site "Bratislava"]
[Date "2019.08.09"]
[Round "8.2"]
[White "Loskutova, Viktoriya"]
[Black "Krasteva, Beloslava"]
[Result "1/2-1/2"]
[ECO "A36"]
[WhiteElo "2019"]
[BlackElo "2327"]
[Annotator "NA"]
[PlyCount "108"]
[EventDate "2019.08.02"]
[EventType "swiss"]
[EventCountry "SVK"]
[SourceTitle "playchess.com"]
[Source "ChessBase"]
[SourceQuality "1"]
[TimeControl "40/5400+30:1800+30"]

1. c4 {[%emt 0:00:00]} c5 {[%emt 0:00:15]} 2. Nc3 {[%emt 0:00:00]} Nc6 {[%emt 0:00:27]} 3. g3 {[%emt 0:00:00]} g6 {[%emt 0:00:28]} 4. Bg2 {[%emt 0:00:09]} Bg7 {[%emt 0:00:29]} 5. b3 {[%emt 0:00:43]} e6 {[%emt 0:05:46]} 6. Ba3 {[%emt 0:01:37]} d6 {[%emt 0:01:59]} 7. e3 {[%emt 0:01:48]} Nge7 {[%emt 0:00:55]} 8. Nge2 {[%emt 0:00:15]} O-O {[%emt 0:01:15]} 9. O-O {[%emt 0:00:33]} a6 {[%emt 0:02:04]} 10. d4 {[%emt 0:12:36]} cxd4 {[%emt 0:07:41]} 11. exd4 {[%emt 0:05:12]} Nf5 {[%emt 0:02:08]} 12. d5 {[%emt 0:05:49]} Ncd4 {[%emt 0:02:26]} 13. Nxd4 {[%emt 0:07:36]} Bxd4 {[%emt 0:02:29]} 14. Rc1 {[%emt 0:03:20]} Qa5 {[%emt 0:08:07]} 15. Nb1 {[%emt 0:06:52]} e5 {[%emt 0:08:15]} 16. Qd2 {[%emt 0:13:31]} Qb6 {[%emt 0:08:13]} 17. Kh1 {[%emt 0:07:19]} Qd8 {[%emt 0:13:49]} 18. Nc3 {[%emt 0:03:35]} Ng7 {[%emt 0:01:07]} 19. Ne4 {[%emt 0:10:01]} Ne8 {[%emt 0:00:46]} 20. c5 {[%emt 0:03:31]} dxc5 {[%emt 0:02:18]} 21. Nxc5 {[%emt 0:00:18]} Nd6 {[%emt 0:04:31]} 22. Bb2 {[%emt 0:04:01]} Bxb2 {[%emt 0:05:26]} 23. Qxb2 {[%emt 0:00:01]} f6 {[%emt 0:01:43]} 24. f4 {[%emt 0:02:36]} exf4 {[%emt 0:01:51]} 25. Rxf4 {[%emt 0:00:10]} Qe7 {[%emt 0:01:55]} 26. Ne4 {[%emt 0:01:37]} Nxe4 {[%emt 0:00:52]} 27. Rxe4 {[%emt 0:00:10]} Qd6 {[%emt 0:01:24]} 28. Rce1 {[%emt 0:03:56]} Bf5 {[%emt 0:06:39]} 29. Re7 {[%emt 0:00:18]} b6 {[%emt 0:01:02]} 30. Qc1 {[%emt 0:05:24]} Rf7 {[%emt 0:02:37]} 31. Rxf7 {[%emt 0:01:03]} Kxf7 {[%emt 0:00:07]} 32. Qh6 {[%emt 0:00:52]} Kg8 {[%emt 0:02:34]} 33. Kg1 {[%emt 0:00:34]} Rc8 {[%emt 0:01:05]} 34. Qe3 {[%emt 0:00:39]} Kf7 {[%emt 0:01:14]} 35. Qe2 {[%emt 0:00:28]} a5 {[%emt 0:00:42]} 36. Qe3 {[%emt 0:00:25]} Bd7 {[%emt 0:01:26]} 37. Qh6 {[%emt 0:00:40]} Kg8 {[%emt 0:00:31]} 38. Qd2 {[%emt 0:00:26]} Qc5+ {[%emt 0:00:56]} 39. Qf2 {[%emt 0:00:36]} Qxf2+ {[%emt 0:00:43]} 40. Kxf2 {[%emt 0:00:00]} Rc2+ {[%emt 0:00:00]} 41. Re2 {[%emt 0:00:08]} Rxe2+ {[%emt 0:01:04]} 42. Kxe2 {[%emt 0:00:01]} Kf7 {[%emt 0:00:32]} 43. Ke3 {[%emt 0:01:49]} Ke7 {[%emt 0:01:19]} 44. Kd4 {[%emt 0:00:05]} Kd6 {[%emt 0:00:19]} 45. a3 {[%emt 0:00:18]} g5 {[%emt 0:07:55]} 46. h3 {[%emt 0:12:50]} h6 {[%emt 0:02:21]} 47. h4 {[%emt 0:00:33]} Bg4 {[%emt 0:05:08]} 48. Bh1 {[%emt 0:04:25]} Bd1 {[%emt 0:02:37]} 49. b4 {[%emt 0:00:06]} axb4 {[%emt 0:00:07]} 50. axb4 {[%emt 0:00:03]} f5 {[%emt 0:02:20]} 51. Bg2 {[%emt 0:02:59]} Bh5 {[%emt 0:01:51]} 52. Bh1 {[%emt 0:05:53]} Be2 {[%emt 0:05:31]} 53. Bg2 {[%emt 0:00:23]} Bh5 {[%emt 0:00:35]} 54. Bh1 {[%emt 0:00:06]} Be2 {[%emt 0:03:49]} 1/2-1/2

[Event "EYCC Girls-U16 2019"]
[Site "Bratislava"]
[Date "2019.08.09"]
[Round "8.3"]
[White "Lehaci, Miruna-Daria"]
[Black "Getman, Tatyana"]
[Result "0-1"]
[ECO "B90"]
[WhiteElo "2201"]
[BlackElo "2143"]
[Annotator "NA"]
[PlyCount "84"]
[EventDate "2019.08.02"]
[EventType "swiss"]
[EventCountry "SVK"]
[SourceTitle "playchess.com"]
[Source "ChessBase"]
[SourceQuality "1"]
[TimeControl "40/5400+30:1800+30"]

1. e4 {[%emt 0:00:00]} c5 {[%emt 0:00:00]} 2. Nf3 {[%emt 0:00:00]} d6 {[%emt 0:00:00]} 3. d4 {[%emt 0:00:00]} cxd4 {[%emt 0:00:00]} 4. Nxd4 {[%emt 0:00:00]} Nf6 {[%emt 0:00:00]} 5. Nc3 {[%emt 0:00:00]} a6 {[%emt 0:00:05]} 6. Be3 {[%emt 0:00:00]} e5 {[%emt 0:00:07]} 7. Nb3 {[%emt 0:00:00]} Be6 {[%emt 0:00:07]} 8. f3 {[%emt 0:00:00]} h5 {[%emt 0:00:12]} 9. Qd2 {[%emt 0:00:01]} Nbd7 {[%emt 0:00:09]} 10. Nd5 {[%emt 0:00:25]} Bxd5 {[%emt 0:00:38]} 11. exd5 {[%emt 0:00:12]} g6 {[%emt 0:03:13]} 12. c4 {[%emt 0:01:48]} Bg7 {[%emt 0:03:21]} 13. Be2 {[%emt 0:00:24]} O-O {[%emt 0:02:54]} 14. O-O {[%emt 0:00:04]} e4 {[%emt 0:06:47]} 15. Bd4 {[%emt 0:05:29]} exf3 {[%emt 0:01:39]} 16. gxf3 {[%emt 0:09:07]} Re8 {[%emt 0:07:44]} 17. Rae1 {[%emt 0:05:17]} Ne5 {[%emt 0:04:19]} 18. f4 {[%emt 0:05:29]} Neg4 {[%emt 0:09:39]} 19. Bd3 {[%emt 0:06:31]} Rxe1 {[%emt 0:11:41]} 20. Qxe1 {[%emt 0:08:40]} Nd7 {[%emt 0:06:41]} 21. h3 {[%emt 0:08:05]} Bxd4+ {[%emt 0:03:38]} 22. Nxd4 {[%emt 0:00:04]} Qf6 {[%emt 0:03:58]} 23. Nf3 {[%emt 0:08:50]} Nh6 {[%emt 0:08:03]} 24. Qd2 {[%emt 0:03:47]} Nf5 {[%emt 0:02:21]} 25. Re1 {[%emt 0:04:49]} Nd4 {[%emt 0:03:09]} 26. Be4 {[%emt 0:08:47]} Nxf3+ {[%emt 0:01:16]} 27. Bxf3 {[%emt 0:00:05]} b5 {[%emt 0:02:02]} 28. cxb5 {[%emt 0:09:11]} axb5 {[%emt 0:00:05]} 29. b3 {[%emt 0:00:05]} Nc5 {[%emt 0:04:13]} 30. Bg2 {[%emt 0:01:54]} Kh7 {[%emt 0:01:33]} 31. Kh1 {[%emt 0:02:06]} Qh4 {[%emt 0:01:23]} 32. Rf1 {[%emt 0:02:09]} Re8 {[%emt 0:02:43]} 33. Qb4 {[%emt 0:04:57]} Ne4 {[%emt 0:08:02]} 34. Qxb5 {[%emt 0:01:21]} Ng3+ {[%emt 0:00:23]} 35. Kg1 {[%emt 0:00:05]} Ne2+ {[%emt 0:00:52]} 36. Kh2 {[%emt 0:01:46]} Re3 {[%emt 0:00:42]} 37. Qd7 {[%emt 0:00:57]} Kh6 {[%emt 0:01:00]} 38. Qc8 {[%emt 0:01:24]} Kg7 {[%emt 0:00:36]} 39. Qd7 {[%emt 0:02:25]} Qg3+ {[%emt 0:00:31]} 40. Kh1 {[%emt 0:00:00]} Nxf4 {[%emt 0:00:00]} 41. Rg1 {[%emt 0:05:56]} Re1 {[%emt 0:00:35]} 42. Qa7 {[%emt 0:00:51]} Qxg2# {[%emt 0:00:03]} 0-1